fUSD/lending_fUSD_20251006
["ID","MTS","AMOUNT","RATE_DAILY","PERIOD"]
[389658198,1759771837433,-681.12774699,0.000208,2]
[389658199,1759771837593,-1015.84870412,0.000208,2]
[389658200,1759771837603,-263.92516341,0.000209,2]
[389658201,1759771837612,-168.0,0.00020937,2]
[389658202,1759771837624,-500.0,0.00020999,2]
[389658203,1759771837633,-500.0,0.00020999,2]
[389658204,1759771837643,-445.01640446,0.00020999,2]
[389658205,1759771837652,-32688.4720132,0.00021,2]
[389658206,1759771837661,-5559.71949392,0.00021,2]
[389658225,1759771839353,-482.25934277,0.00021,2]
[389658227,1759771839364,-10508.85080774,0.00021,2]
[389658228,1759771839411,-1874.48,0.00021,2]
[389658229,1759771839422,-849.759,0.00021,2]
[389658230,1759771839433,-15724.887,0.00021,2]
[389658231,1759771839520,-942.78,0.00021,2]
[389658232,1759771839531,-2962.13572308,0.00021,2]
[389658233,1759771839576,-544.90783643,0.00021,2]
[389658256,1759771842373,-309.59729112,0.00021,2]
[389658257,1759771842428,-1467.03974048,0.00021,2]
[389658258,1759771842438,-1176.94944268,0.00021,2]
[389658259,1759771842448,-194.27235116,0.00021,2]
[389658260,1759771842457,-3509.71852068,0.00021,2]
[389658261,1759771842467,-160.0,0.00021,7]
[389658262,1759771842476,-297.16030033,0.00021,2]
[389658263,1759771842486,-168.0,0.00021065,2]
[389658264,1759771842495,-417.0,0.000211,2]
[389658265,1759771842505,-168.0,0.00021109,2]
[389658266,1759771842514,-1035.83886778,0.00021167,2]
[389658267,1759771842524,-162.38,0.00021445,2]
[389658268,1759771842533,-1000.0,0.00021446,2]
[389658269,1759771842544,-151.0,0.00021447,2]
[389658270,1759771842557,-151.0,0.00021447,2]
[389658271,1759771842566,-159.46827941,0.00021447,2]
[389658272,1759771842576,-1425.56870766,0.00021447,2]
[389658273,1759771842586,-8670.9169,0.00021447,2]
[389658274,1759771842596,-601.3376128,0.00021447,2]
[389658275,1759771842606,-151.0,0.00021447,2]
[389658276,1759771842615,-168.0,0.00021536,2]
[389658277,1759771842626,-150.0,0.0002158,2]
[389658278,1759771842636,-168.0,0.00021584,2]
[389658279,1759771842645,-168.0,0.00021596,2]
[389658280,1759771842656,-168.0,0.00021663,2]
[389658281,1759771842665,-168.0,0.00021681,2]
[389658282,1759771842674,-163.74801181,0.00021945,2]
[389658283,1759771842683,-2412.65,0.00021945,30]
[389658284,1759771842692,-151.0,0.00021995,2]
[389658285,1759771842701,-168.0,0.00022072,2]
[389658286,1759771842710,-163.74801181,0.00022082,2]
[389658287,1759771842719,-600.0,0.0002211,2]
[389658288,1759771842727,-263.92516341,0.00022159,2]
[389658289,1759771842736,-163.74801181,0.00022192,2]
[389658290,1759771842745,-1035.83886778,0.00022235,2]
[389658291,1759771842753,-168.0,0.00022268,2]
[389658292,1759771842762,-168.0,0.00022306,2]
[389658293,1759771842771,-168.0,0.00022317,2]
[389658294,1759771842780,-168.0,0.00022325,2]
[389658295,1759771842790,-163.74801181,0.00022329,2]
[389658296,1759771842799,-163.74801181,0.00022438,2]
[389658297,1759771842808,-163.74801181,0.00022548,2]
[389658298,1759771842817,-168.0,0.00022592,2]
[389658300,1759771842826,-168.0,0.00022608,2]
[389658302,1759771842834,-600.0,0.00022658,2]
[389658303,1759771842843,-163.74801181,0.00022685,2]
[389658304,1759771842851,-168.0,0.0002274,2]
[389658305,1759771842860,-163.74801181,0.00022795,2]
[389658306,1759771842869,-168.0,0.000228,2]
[389658307,1759771842878,-163.74801181,0.00022932,2]
[389658308,1759771842887,-1000.0,0.00023,14]
[389658310,1759771842896,-433.56676503,0.00023,2]
[389658311,1759771842905,-993.20534811,0.00023,2]
[389658312,1759771842914,-2548.91630873,0.000231,2]
[389658314,1759771842923,-180.556667,0.00023165,2]
[389658315,1759771842934,-152.955031,0.00023165,2]
[389658316,1759771842944,-152.342826,0.00023165,2]
[389658317,1759771842953,-600.0,0.00023206,2]
[389658318,1759771842962,-1035.83886778,0.00023302,2]
[389658319,1759771842971,-263.92516341,0.00023417,2]
[389658320,1759771842980,-159.75130954,0.00023693,2]
[389658321,1759771842990,-600.0,0.00023754,2]
[389658322,1759771842999,-610.18856674,0.000239,2]
[389658323,1759771843009,-162.46,0.0002399,2]
[389658324,1759771843018,-5000.0096733,0.00024,5]
[389658325,1759771843027,-501.6978,0.00024,2]
[389658326,1759771843036,-600.0,0.00024302,2]
[389658327,1759771843045,-1035.83886778,0.0002437,2]
[389658328,1759771843055,-1000.0,0.0002444,2]
[389658329,1759771843064,-2201.811,0.00024441,7]
[389658330,1759771843074,-271.189,0.00024441,7]
[389658331,1759771843083,-4000.0,0.00024463,30]
[389658332,1759771843092,-13047.59904785,0.000245,2]
[389658333,1759771843240,-25186.3396482,0.000245,2]
[389658334,1759771843252,-1194.80376201,0.000245,2]
[389658335,1759771843263,-2534.23388315,0.000245,2]
[389658336,1759771843274,-10497.31299806,0.000245,2]
[389658337,1759771843283,-610.18856668,0.00024546,2]
[389658338,1759771843292,-263.92516341,0.00024676,2]
[389658339,1759771843302,-1082.18,0.0002479,2]
[389658340,1759771843311,-1572.23081927,0.000248,3]
[389658341,1759771843322,-619.22570592,0.000248,3]
[389658342,1759771843336,-4115.59484625,0.000248,3]
[389658343,1759771843378,-922.53916695,0.000248,3]
[389658344,1759771843389,-6381.3236624,0.000248,3]
[389658345,1759771843449,-61937.60155021,0.000248,3]
[389658346,1759771843458,-1000.0,0.00024849,2]
[389658347,1759771843467,-600.0,0.0002485,2]
[389658348,1759771843475,-180.556667,0.000249,3]
[389658349,1759771843484,-152.342826,0.000249,3]
[389658350,1759771843494,-550.59,0.00024979,2]
[389658351,1759771843503,-180.556667,0.00025,7]
[389658352,1759771843512,-152.342826,0.00025,7]
[389658353,1759771843521,-1036.65,0.00025,2]
[389658354,1759771843530,-200.0,0.00025,7]
[389658355,1759771843539,-79591.19978247,0.00025,7]
[389658356,1759771843551,-610.18856668,0.00025191,2]
[389658357,1759771843560,-600.0,0.00025398,2]
[389658358,1759771843569,-1035.83886778,0.00025437,2]
[389658359,1759771843578,-1036.65,0.000255,2]
[389658360,1759771843588,-610.18856668,0.00025837,2]
[389658361,1759771843599,-263.92516341,0.00025934,2]
[389658362,1759771843609,-600.0,0.00025946,2]
[389658363,1759771843620,-388.0,0.00026,7]
[389658364,1759771843630,-1036.65,0.00026,30]
[389658365,1759771843639,-180.556667,0.00026131,3]
[389658366,1759771843649,-152.342826,0.00026131,3]
[389658367,1759771843658,-524.92,0.00026161,2]
[389658368,1759771843668,-180.556667,0.00026381,7]
[389658369,1759771843677,-152.955031,0.00026381,7]
[389658370,1759771843687,-152.342826,0.00026381,7]
[389658371,1759771843696,-610.18856668,0.00026482,2]
[389658372,1759771843705,-600.0,0.00026494,2]
[389658373,1759771843714,-1036.65,0.000265,30]
[389658374,1759771843723,-1035.83886778,0.00026505,2]
[389658375,1759771843733,-180.556667,0.00026529,2]
[389658376,1759771843748,-152.955031,0.00026529,2]
[389658377,1759771843757,-152.342826,0.00026529,2]
[389658378,1759771843766,-2000.0,0.000266,2]
[389658379,1759771843775,-388.0,0.00026662,7]
[389658380,1759771843784,-212.94,0.00026763,2]
[389658381,1759771843793,-175.28577663,0.00026803,4]
[389658382,1759771843802,-150.0,0.00026803,4]
[389658383,1759771843811,-150.0,0.00026803,4]
[389658384,1759771843829,-150.0,0.00026803,4]
[389658385,1759771843840,-150.0,0.00026803,4]
[389658386,1759771843849,-150.0,0.00026803,4]
[389658387,1759771843858,-150.0,0.00026803,4]
[389658388,1759771843867,-150.0,0.00026803,4]
[389658389,1759771843876,-231.22253024,0.00026803,4]
[389658390,1759771843885,-150.00000001,0.00026803,4]
[389658391,1759771843895,-153.0751582,0.00026803,4]
[389658392,1759771843904,-388.0,0.00026935,7]
[389658393,1759771843913,-1036.65,0.00027,30]
[389658394,1759771843922,-600.0,0.00027042,2]
[389658395,1759771843931,-610.18856668,0.00027128,2]
[389658396,1759771843941,-462.0,0.00027144,120]
[389658397,1759771843950,-263.92516341,0.00027193,2]
[389658398,1759771843959,-388.0,0.00027209,7]
[389658399,1759771843969,-180.556667,0.00027361,3]
[389658400,1759771843978,-152.955031,0.00027361,3]
[389658401,1759771843988,-152.342826,0.00027361,3]
[389658402,1759771843997,-300.0,0.00027397,7]
[389658403,1759771844007,-150.0,0.00027397,7]
[389658404,1759771844016,-411.15866498,0.00027397,2]
[389658405,1759771844026,-370.68887098,0.000274,7]
[389658406,1759771844036,-150.0,0.00027412,2]
[389658407,1759771844046,-2412.65,0.00027422,30]
[389658408,1759771844055,-388.0,0.00027483,14]
[389658409,1759771844065,-1036.65,0.000275,30]
[389658410,1759771844074,-2068.75564342,0.00027537,2]
[389658411,1759771844083,-1035.83886778,0.00027572,2]
[389658412,1759771844093,-600.0,0.0002759,2]
[389658413,1759771844103,-2426.31834722,0.00027662,2]
[389658414,1759771844112,-1000.0,0.00027671,7]
[389658415,1759771844121,-388.0,0.00027707,14]
[389658416,1759771844130,-180.556667,0.00027761,7]
[389658417,1759771844140,-152.955031,0.00027761,7]
[389658418,1759771844149,-152.342826,0.00027761,7]
[389658419,1759771844159,-610.18856668,0.00027773,2]
[389658420,1759771844168,-2783.88105102,0.00027787,2]
[389658421,1759771844177,-1000.0,0.00027911,7]
[389658422,1759771844186,-3141.44375482,0.00027912,2]
[389658423,1759771844196,-37774.2578755,0.0002798,3]
[389658424,1759771844205,-75548.515751,0.0002799,3]
[389658425,1759771844218,-4213.39955019,0.0002799,3]
[389658426,1759771844228,-163079.0,0.00028,2]
[389658427,1759771844242,-1036.65,0.00028,30]
[389658428,1759771844251,-3499.00645862,0.00028037,2]
[389658429,1759771844261,-1404.46651673,0.00028133,3]
[389658430,1759771844270,-600.0,0.00028138,2]
[389658431,1759771844280,-1000.0,0.00028151,7]
[389658432,1759771844290,-3856.56916242,0.00028162,2]
[389658433,1759771844300,-4214.13186622,0.00028287,2]
[389658434,1759771844309,-1500.0,0.00028383,120]
[389658435,1759771844319,-1000.0,0.0002839,7]
[389658436,1759771844329,-4571.69457002,0.00028412,2]
[389658437,1759771844339,-610.18856668,0.00028419,2]
[389658438,1759771844348,-263.92516341,0.00028451,2]
[389658439,1759771844358,-370.68887098,0.000285,30]
[389658440,1759771844367,-1036.65,0.000285,30]
[389658441,1759771844376,-4929.25727382,0.00028537,2]
[389658442,1759771844386,-37774.2578755,0.00028582,3]
[389658443,1759771844396,-180.556667,0.00028592,3]
[389658444,1759771844407,-152.955031,0.00028592,3]
[389658445,1759771844416,-152.342826,0.00028592,3]
[389658446,1759771844426,-1404.46651673,0.0002862,3]
[389658447,1759771844436,-1000.0,0.0002863,7]
[389658448,1759771844446,-1035.83886778,0.0002864,2]
[389658449,1759771844459,-5286.81997762,0.00028662,2]
[389658450,1759771844468,-600.0,0.00028686,2]
[389658451,1759771844478,-1404.46651673,0.00028758,3]
[389658452,1759771844488,-5644.38268142,0.00028787,2]
[389658453,1759771844498,-1000.0,0.0002887,7]
[389658454,1759771844508,-600.0,0.000289,10]
[389658455,1759771844518,-6001.94538522,0.00028912,2]
[389658456,1759771844790,-175.72,0.00028986,2]
[389658457,1759771844800,-412.63,0.00028986,2]
[389658458,1759771844809,-2393.68,0.00028986,2]
[389658459,1759771844818,-545.7,0.00028986,2]
[389658460,1759771844831,-175.72,0.00028986,2]
[389658461,1759771844840,-545.7,0.00028986,2]
[389658462,1759771844849,-1090.45,0.00028986,2]
[389658463,1759771844859,-350.93,0.00028986,2]
[389658464,1759771844869,-1036.65,0.00029,30]
[389658465,1759771844878,-1200.0,0.00029,10]
[389658466,1759771844887,-1404.46651673,0.00029007,3]
[389658467,1759771844896,-6359.50808902,0.00029037,2]
[389658468,1759771844905,-1444.0,0.00029041,120]
[389658469,1759771844915,-5000.0,0.00029052,2]
[389658470,1759771844924,-610.18856668,0.00029064,2]
[389658471,1759771844933,-388.0,0.00029092,14]
[389658472,1759771844942,-391.0,0.00029092,14]
[389658473,1759771844951,-1800.0,0.000291,10]
[389658474,1759771844961,-1000.0,0.0002911,7]
[389658475,1759771844970,-180.556667,0.00029142,7]
[389658476,1759771844979,-152.955031,0.00029142,7]
[389658477,1759771844988,-152.342826,0.00029142,7]
[389658478,1759771844997,-6717.07079282,0.00029162,2]
[389658479,1759771845007,-37774.2578755,0.0002918,3]
[389658480,1759771845017,-1404.46651673,0.0002918,3]
[389658481,1759771845026,-2400.0,0.000292,10]
[389658482,1759771845035,-600.0,0.00029234,2]
[389658483,1759771845045,-7074.63349662,0.00029286,2]
[389658484,1759771845054,-3000.0,0.000293,10]
[389658485,1759771845066,-1000.0,0.00029349,7]
[389658486,1759771845075,-1404.46651673,0.00029382,3]
[389658487,1759771845084,-600.0,0.000294,10]
[389658488,1759771845093,-7432.19620043,0.00029411,2]
[389658489,1759771845102,-600.0,0.000295,10]
[389658490,1759771845112,-1404.46651673,0.00029507,3]
[389658491,1759771845121,-7789.75890423,0.00029536,2]
[389658492,1759771845130,-200.0,0.00029579,2]
[389658493,1759771845140,-1604.06775127,0.00029589,7]
[389658494,1759771845150,-150.0,0.0002959,2]
[389658495,1759771845159,-500.0,0.0002959,2]
[389658496,1759771845169,-500.0,0.0002959,2]
[389658497,1759771845178,-150.0,0.0002959,2]
[389658500,1759771845187,-150.0,0.0002959,2]
[389658501,1759771845196,-150.0,0.0002959,2]
[389658503,1759771845206,-200.0,0.0002959,2]
[389658504,1759771845215,-150.0,0.0002959,2]
[389658505,1759771845225,-500.0,0.0002959,2]
[389658506,1759771845235,-150.0,0.0002959,2]
[389658507,1759771845245,-173.0,0.000296,2]
[389658508,1759771845254,-600.0,0.000296,10]
[389658509,1759771845263,-8147.32160803,0.00029661,2]
[389658510,1759771845273,-150.5,0.00029677,2]
[389658511,1759771845282,-2000.0,0.00029679,2]
[389658512,1759771845291,-37774.2578755,0.00029687,3]
[389658513,1759771845300,-1404.46651673,0.00029687,3]
[389658514,1759771845309,-600.0,0.000297,10]
[389658515,1759771845319,-312.30146959,0.00029707,2]
[389658518,1759771845328,-1035.83886778,0.00029707,2]
[389658520,1759771845337,-610.18856668,0.0002971,2]
[389658522,1759771845346,-32576.24437988,0.0002971,2]
[389658524,1759771845355,-263.92516341,0.0002971,2]
[389658526,1759771845364,-1404.46651673,0.00029756,3]
[389658528,1759771845373,-150.5,0.00029757,2]
[389658530,1759771845382,-150.5,0.00029757,2]
[389658531,1759771845391,-113322.773626,0.00029766,3]
[389658532,1759771845400,-14044.6651673,0.00029766,3]
[389658533,1759771845410,-150.5,0.00029766,2]
[389658534,1759771845419,-150.5,0.00029766,2]
[389658535,1759771845428,-500.0,0.00029776,2]
[389658536,1759771845437,-188871.289377,0.00029776,3]
[389658537,1759771845447,-4213.39955019,0.00029776,3]
[389658538,1759771845455,-21936.96,0.00029777,30]
[389658539,1759771845464,-150.5,0.00029786,2]
[389658540,1759771845474,-8504.88431183,0.00029786,2]
[389658541,1759771845483,-150.5,0.00029786,2]
[389658542,1759771845493,-150.5,0.00029786,2]
[389658543,1759771845511,-150.5,0.00029786,2]
[389658544,1759771845522,-150.5,0.00029786,2]
[389658545,1759771845532,-3631.06,0.00029796,2]
[389658546,1759771845542,-3631.06,0.00029796,2]
[389658547,1759771845555,-3631.06,0.00029796,2]
[389658548,1759771845564,-500.0,0.00029796,2]
[389658549,1759771845574,-3631.06,0.00029796,2]
[389658550,1759771845583,-500.0,0.00029796,2]
[389658551,1759771845594,-3631.06,0.00029796,2]
[389658552,1759771845603,-500.0,0.00029796,2]
[389658553,1759771845612,-500.0,0.00029796,2]
[389658554,1759771845623,-500.0,0.00029796,2]
[389658555,1759771845635,-3631.06,0.00029796,2]
[389658556,1759771845644,-500.0,0.00029796,2]
[389658557,1759771845654,-212.54887915,0.00029796,2]
[389658558,1759771845664,-3631.06,0.00029796,2]
[389658559,1759771845673,-500.0,0.00029796,2]
[389658560,1759771845683,-3631.06,0.00029796,2]
[389658561,1759771845693,-500.0,0.00029796,2]
[389658562,1759771845703,-3631.06,0.00029796,2]
[389658563,1759771845712,-500.0,0.00029796,2]
[389658564,1759771845722,-3631.06,0.00029796,2]
[389658565,1759771845731,-500.0,0.00029796,2]
[389658566,1759771845741,-3631.06,0.00029796,2]
[389658567,1759771845750,-500.0,0.00029796,2]
[389658568,1759771845759,-3631.06,0.00029796,2]
[389658569,1759771845769,-500.0,0.00029796,2]
[389658570,1759771845779,-3631.06,0.00029796,2]
[389658571,1759771845788,-500.0,0.00029796,2]
[389658572,1759771845797,-3631.06,0.00029796,2]
[389658574,1759771845807,-500.0,0.00029796,2]
[389658576,1759771845816,-3631.06,0.00029796,2]
[389658578,1759771845826,-500.0,0.00029796,2]
[389658580,1759771845835,-3631.06,0.00029796,2]
[389658582,1759771845844,-500.0,0.00029796,2]
[389658583,1759771845853,-3631.06,0.00029796,2]
[389658584,1759771845863,-383.82235338,0.00029796,2]
[389658586,1759771845872,-3631.06,0.00029796,2]
[389658587,1759771845881,-3631.06,0.00029796,2]
[389658588,1759771845891,-3631.06,0.00029796,2]
[389658589,1759771845900,-3631.06,0.00029796,2]
[389658590,1759771845910,-3631.06,0.00029796,2]
[389658591,1759771845919,-3631.06,0.00029796,2]
[389658592,1759771845929,-3631.14488707,0.00029796,2]
[389658593,1759771845939,-302958.76101306,0.00029796,2]
[389658594,1759771845948,-922.0,0.000298,10]
[389658595,1759771845957,-151.0,0.00029806,7]
[389658596,1759771845967,-151.0,0.00029806,7]
[389658597,1759771845976,-176.419216,0.00029806,7]
[389658598,1759771845985,-176.419216,0.00029806,7]
[389658599,1759771845995,-176.419216,0.00029806,7]
[389658600,1759771846004,-176.419216,0.00029806,7]
[389658601,1759771846014,-176.419216,0.00029806,7]
[389658602,1759771846024,-176.419216,0.00029806,7]
[389658603,1759771846034,-176.419216,0.00029806,7]
[389658604,1759771846043,-176.419216,0.00029806,7]
[389658605,1759771846052,-176.419216,0.00029806,7]
[389658606,1759771846062,-176.419216,0.00029806,7]
[389658607,1759771846071,-176.419216,0.00029806,7]
[389658608,1759771846080,-176.419216,0.00029806,7]
[389658609,1759771846090,-176.419216,0.00029806,7]
[389658610,1759771846099,-176.419216,0.00029806,7]
[389658611,1759771846108,-176.419216,0.00029806,7]
[389658612,1759771846121,-176.419216,0.00029806,7]
[389658613,1759771846131,-176.419216,0.00029806,7]
[389658614,1759771846141,-176.419216,0.00029806,7]
[389658615,1759771846150,-176.419216,0.00029806,7]
[389658616,1759771846160,-176.419208,0.00029806,7]
[389658617,1759771846169,-151.0,0.00029806,7]
[389658618,1759771846179,-151.0,0.00029806,7]
[389658619,1759771846188,-151.0,0.00029806,7]
[389658620,1759771846198,-151.0,0.00029806,7]
[389658621,1759771846207,-151.0,0.00029806,7]
[389658622,1759771846217,-151.0,0.00029806,7]
[389658623,1759771846227,-151.0,0.00029806,7]
[389658624,1759771846236,-151.0,0.00029806,7]
[389658625,1759771846247,-151.0,0.00029806,7]
[389658626,1759771846256,-151.0,0.00029806,7]
[389658627,1759771846266,-151.0,0.00029806,7]
[389658628,1759771846275,-151.0,0.00029806,7]
[389658629,1759771846285,-151.0,0.00029806,7]
[389658630,1759771846294,-153.049078,0.00029806,7]
[389658631,1759771846303,-151.0,0.00029806,30]
[389658632,1759771846313,-151.0,0.00029806,30]
[389658633,1759771846322,-151.0,0.00029806,30]
[389658634,1759771846331,-151.0,0.00029806,30]
[389658635,1759771846341,-151.0,0.00029806,30]
[389658636,1759771846351,-151.0,0.00029806,30]
[389658637,1759771846360,-151.0,0.00029806,30]
[389658638,1759771846369,-164.126545,0.00029806,30]
[389658639,1759771846379,-151.0,0.00029806,30]
[389658640,1759771846388,-151.0,0.00029806,30]
[389658641,1759771846398,-151.0,0.00029806,30]
[389658642,1759771846407,-151.0,0.00029806,30]
[389658643,1759771846417,-151.0,0.00029806,30]
[389658644,1759771846426,-151.0,0.00029806,30]
[389658645,1759771846435,-151.0,0.00029806,30]
[389658646,1759771846445,-151.0,0.00029806,30]
[389658647,1759771846454,-185.726584,0.00029806,30]
[389658648,1759771846463,-151.0,0.00029806,30]
[389658649,1759771846473,-151.0,0.00029806,30]
[389658650,1759771846483,-151.0,0.00029806,30]
[389658651,1759771846494,-151.534264,0.00029806,30]
[389658652,1759771846503,-151.0,0.00029806,30]
[389658653,1759771846513,-151.0,0.00029806,30]
[389658654,1759771846522,-151.0,0.00029806,30]
[389658655,1759771846532,-151.0,0.00029806,30]
[389658656,1759771846542,-151.0,0.00029806,30]
[389658657,1759771846555,-151.0,0.00029806,30]
[389658658,1759771846568,-151.0,0.00029806,30]
[389658659,1759771846578,-151.0,0.00029806,30]
[389658660,1759771846588,-151.0,0.00029806,30]
[389658661,1759771846598,-151.0,0.00029806,30]
[389658662,1759771846607,-151.0,0.00029806,30]
[389658663,1759771846617,-151.0,0.00029806,30]
[389658664,1759771846628,-151.0,0.00029806,30]
[389658665,1759771846638,-151.0,0.00029806,30]
[389658666,1759771846648,-151.0,0.00029806,30]
[389658667,1759771846657,-255.551385,0.00029806,30]
[389658668,1759771846667,-151.0,0.00029806,30]
[389658669,1759771846676,-151.0,0.00029806,30]
[389658670,1759771846687,-151.0,0.00029806,30]
[389658671,1759771846696,-151.0,0.00029806,30]
[389658672,1759771846706,-151.0,0.00029806,30]
[389658673,1759771846715,-151.0,0.00029806,30]
[389658674,1759771846725,-151.0,0.00029806,30]
[389658675,1759771846734,-151.0,0.00029806,30]
[389658676,1759771846746,-151.0,0.00029806,30]
[389658677,1759771846755,-205.173928,0.00029806,30]
[389658678,1759771846764,-151.0,0.00029806,30]
[389658679,1759771846774,-151.0,0.00029806,30]
[389658680,1759771846783,-151.0,0.00029806,30]
[389658681,1759771846793,-151.0,0.00029806,30]
[389658682,1759771846802,-151.0,0.00029806,30]
[389658683,1759771846812,-151.0,0.00029806,30]
[389658684,1759771846821,-151.0,0.00029806,30]
[389658685,1759771846830,-151.0,0.00029806,30]
[389658686,1759771846841,-151.0,0.00029806,30]
[389658687,1759771846850,-151.0,0.00029806,30]
[389658688,1759771846859,-151.0,0.00029806,30]
[389658689,1759771846868,-151.0,0.00029806,30]
[389658690,1759771846878,-151.0,0.00029806,30]
[389658691,1759771846888,-151.0,0.00029806,30]
[389658692,1759771846897,-151.0,0.00029806,30]
[389658693,1759771846907,-151.0,0.00029806,30]
[389658694,1759771846917,-151.0,0.00029806,30]
[389658695,1759771846927,-151.0,0.00029806,30]
[389658696,1759771846936,-151.0,0.00029806,30]
[389658697,1759771846946,-151.0,0.00029806,30]
[389658698,1759771846955,-151.0,0.00029806,30]
[389658699,1759771846964,-151.0,0.00029806,30]
[389658700,1759771846974,-151.0,0.00029806,30]
[389658701,1759771846983,-151.0,0.00029806,30]
[389658702,1759771846994,-151.0,0.00029806,30]
[389658703,1759771847004,-151.0,0.00029806,30]
[389658704,1759771847017,-151.0,0.00029806,30]
[389658705,1759771847027,-151.0,0.00029806,30]
[389658706,1759771847037,-117798.3626298,0.00029806,2]
[389658707,1759771847047,-151.0,0.00029806,30]
[389658708,1759771847059,-151.0,0.00029806,30]
[389658709,1759771847069,-151.0,0.00029806,30]
[389658710,1759771847079,-232.81783,0.00029806,30]
[389658711,1759771847088,-151.0,0.00029806,30]
[389658712,1759771847099,-151.0,0.00029806,30]
[389658713,1759771847110,-151.0,0.00029806,30]
[389658714,1759771847120,-151.0,0.00029806,30]
[389658715,1759771847131,-151.0,0.00029806,30]
[389658716,1759771847141,-151.0,0.00029806,30]
[389658717,1759771847150,-151.0,0.00029806,30]
[389658718,1759771847160,-151.0,0.00029806,30]
[389658719,1759771847170,-151.0,0.00029806,30]
[389658720,1759771847180,-151.0,0.00029806,30]
[389658721,1759771847190,-151.0,0.00029806,30]
[389658722,1759771847199,-151.0,0.00029806,30]
[389658723,1759771847211,-151.0,0.00029806,30]
[389658724,1759771847222,-151.0,0.00029806,30]
[389658725,1759771847232,-151.0,0.00029806,30]
[389658726,1759771847243,-151.0,0.00029806,30]
[389658727,1759771847253,-151.0,0.00029806,30]
[389658728,1759771847262,-156.0262,0.00029806,30]
[389658729,1759771847272,-151.0,0.00029806,30]
[389658730,1759771847281,-151.0,0.00029806,30]
[389658731,1759771847291,-242.351602,0.00029806,30]
[389658732,1759771847300,-151.0,0.00029806,30]
[389658733,1759771847309,-151.0,0.00029806,30]
[389658734,1759771847319,-359.44088,0.00029806,2]
[389658735,1759771847328,-3416.9455481,0.00029806,2]
[389658736,1759771847337,-1787.2640417,0.00029806,2]
[389658737,1759771847347,-814.1306874,0.00029806,2]
[389658738,1759771847357,-302958.76101306,0.00029806,2]
[389658739,1759771847366,-171057.22810784,0.00029806,2]
[389658740,1759771847387,-131901.53290522,0.00029806,2]
[389658741,1759771847397,-302958.76101306,0.00029806,2]
[389658742,1759771847407,-302958.76101306,0.00029806,2]
[389658743,1759771847416,-151.0,0.00029807,7]
[389658744,1759771847426,-151.0,0.00029807,7]
[389658745,1759771847435,-151.0,0.00029807,7]
[389658746,1759771847445,-151.0,0.00029807,7]
[389658747,1759771847458,-151.0,0.00029807,7]
[389658748,1759771847467,-219.110271,0.00029807,7]
[389658749,1759771847477,-151.0,0.00029807,7]
[389658750,1759771847488,-151.0,0.00029807,7]
[389658751,1759771847497,-200.0,0.00029807,2]
[389658752,1759771847506,-151.0,0.00029807,3]
[389658753,1759771847516,-151.0,0.00029807,3]
[389658754,1759771847525,-151.0,0.00029807,3]
[389658755,1759771847535,-151.0,0.00029807,3]
[389658756,1759771847545,-819.0,0.00029807,3]
[389658757,1759771847559,-151.0,0.00029807,3]
[389658758,1759771847568,-151.0,0.00029807,3]
[389658759,1759771847577,-819.0,0.00029807,3]